fUSD/lending_fUSD_20250220
["ID","MTS","AMOUNT","RATE_DAILY","PERIOD"]
[353766044,1740022240180,-346.84599533,0.00012272,2]
[353766045,1740022240190,-383.7493,0.00012274,2]
[353766046,1740022240199,-150.0,0.00012288,2]
[353766047,1740022240209,-150.0,0.00012296,2]
[353766048,1740022240218,-150.42,0.00012298,2]
[353766049,1740022240228,-150.77,0.00012298,2]
[353766051,1740022240238,-986.97,0.00012298,2]
[353766053,1740022240249,-300.84,0.00012298,2]
[353766055,1740022240259,-151.37,0.00012298,2]
[353766057,1740022240269,-888.11,0.00012298,2]
[353766059,1740022240278,-150.0,0.00012298,2]
[353766061,1740022240288,-986.97,0.00012298,2]
[353766063,1740022240298,-150.0,0.00012298,2]
[353766065,1740022240308,-150.0,0.00012298,2]
[353766068,1740022240318,-1762.48,0.00012298,2]
[353766069,1740022240327,-150.0,0.00012298,2]
[353766071,1740022240338,-151.55,0.00012298,2]
[353766072,1740022240348,-150.0,0.00012298,2]
[353766074,1740022240358,-150.0,0.00012298,2]
[353766076,1740022240368,-150.0,0.00012298,2]
[353766078,1740022240378,-150.0,0.00012298,2]
[353766080,1740022240387,-150.0,0.00012298,2]
[353766082,1740022240397,-150.0,0.00012298,2]
[353766084,1740022240407,-300.0,0.00012298,2]
[353766086,1740022240417,-269.01,0.00012298,2]
[353766087,1740022240426,-150.0,0.00012298,2]
[353766088,1740022240439,-150.0,0.00012298,2]
[353766089,1740022240449,-379.73,0.00012298,2]
[353766090,1740022240459,-150.0,0.00012298,2]
[353766091,1740022240468,-150.0,0.00012298,2]
[353766092,1740022240477,-300.0,0.00012298,2]
[353766093,1740022240487,-150.0,0.00012298,2]
[353766094,1740022240496,-150.0,0.00012298,2]
[353766095,1740022240506,-300.0,0.00012298,2]
[353766096,1740022240515,-171.3117,0.000123,2]
[353766097,1740022240525,-1404.65584436,0.000123,2]
[353766098,1740022240535,-150.0,0.00012303,2]
[353766099,1740022240545,-1405.67525456,0.00012313,2]
[353766100,1740022240554,-150.0,0.00012319,2]
[353766101,1740022240564,-150.0,0.00012323,2]
[353766102,1740022240573,-1899.62,0.00012328,2]
[353766103,1740022240583,-150.0,0.00012335,2]
[353766104,1740022240593,-150.0,0.00012337,2]
[353766105,1740022240602,-493.04,0.00012348,2]
[353766106,1740022240611,-150.0,0.00012351,2]
[353766107,1740022240621,-150.0,0.00012362,2]
[353766108,1740022240630,-150.0,0.00012367,2]
[353766109,1740022240639,-150.0,0.0001238,2]
[353766110,1740022240648,-506.01,0.00012382,2]
[353766111,1740022240658,-150.0,0.00012382,2]
[353766112,1740022240668,-215.0,0.00012384,2]
[353766113,1740022240677,-2667.7461,0.0001239,2]
[353766114,1740022240687,-150.0,0.00012398,2]
[353766115,1740022240697,-2950.6,0.00012399,2]
[353766116,1740022240707,-392810.71854322,0.00012399,3]
[353766117,1740022240717,-394468.0666,0.000124,2]
[353766118,1740022240726,-502.87,0.000124,2]
[353766119,1740022240736,-10334.829237,0.000124,2]
[353766120,1740022240745,-332.99232519,0.000124,2]
[353766121,1740022240755,-159.27733395,0.000124,2]
[353766122,1740022240765,-500.0,0.000124,2]
[353766123,1740022240774,-2000.0,0.000124,2]
[353766124,1740022240783,-500.0,0.000124,2]
[353766125,1740022240793,-200.0,0.000124,2]
[353766126,1740022240802,-1413483.30093444,0.000124,3]
[353766127,1740022240837,-61616.0,0.000124,3]
[353766128,1740022240948,-0.00034016,0.000124,3]
[353766129,1740022240959,-69777.30369847,0.000124,3]
[353766137,1740022243408,-165.58147916,0.0001,2]
[353766138,1740022243419,-641.855,0.00011551,2]
[353766139,1740022243428,-85192.56354084,0.000124,3]
[353766150,1740023285404,164.78,8.767e-05,2]
[353766169,1740023432450,-826.49,9.299e-05,2]
[353766170,1740023432460,-1053.97,0.00010834,2]
[353766171,1740023432470,-200.0,0.00010839,2]
[353766172,1740023432480,-300.0,0.00010844,2]
[353766173,1740023432490,-1000.0,0.00011167,2]
[353766174,1740023432499,-250.93,0.00011169,2]
[353766175,1740023432509,-210.6,0.00011181,2]
[353766176,1740023432519,-150.0,0.00011196,2]
[353766177,1740023432529,-150.0,0.00011231,2]
[353766178,1740023432539,-300.0,0.00011231,2]
[353766179,1740023432548,-23900.0,0.00011232,2]
[353766180,1740023432558,-1500.0,0.00011232,2]
[353766181,1740023432567,-8450.92,0.00011232,2]
[353766182,1740023432577,-150.0,0.00011244,2]
[353766183,1740023432586,-150.0,0.00011244,2]
[353766184,1740023432596,-150.0,0.00011244,2]
[353766185,1740023432606,-150.0,0.00011244,2]
[353766186,1740023432616,-150.0,0.00011271,2]
[353766187,1740023432626,-13994.41,0.0001128,2]
[353766188,1740023432636,-150.0,0.00011298,2]
[353766189,1740023432645,-150.0,0.00011325,2]
[353766190,1740023432655,-150.0,0.0001134,2]
[353766191,1740023432665,-150.0,0.00011348,2]
[353766192,1740023432674,-150.0,0.00011352,2]
[353766193,1740023432683,-150.0,0.0001138,2]
[353766194,1740023432694,-150.0,0.00011407,2]
[353766195,1740023432704,-150.0,0.00011434,2]
[353766196,1740023432717,-150.0,0.00011436,2]
[353766197,1740023432727,-150.0,0.00011452,2]
[353766198,1740023432736,-150.0,0.00011452,2]
[353766199,1740023432747,-150.0,0.00011461,2]
[353766201,1740023432757,-163.9,0.00011481,2]
[353766203,1740023432766,-150.0,0.00011488,2]
[353766205,1740023432776,-150.0,0.00011515,2]
[353766206,1740023432787,-150.0,0.00011532,2]
[353766207,1740023432797,-440.27,0.00011541,2]
[353766208,1740023432806,-783.47,0.00011541,2]
[353766210,1740023432817,-440.27,0.00011541,2]
[353766212,1740023432827,-150.0,0.00011543,2]
[353766214,1740023432836,-500.0,0.00011552,2]
[353766216,1740023432846,-250.0,0.00011552,2]
[353766218,1740023432856,-150.0,0.00011556,2]
[353766220,1740023432865,-826.49,0.00011563,2]
[353766222,1740023432875,-509.23,0.00011566,2]
[353766224,1740023432885,-150.0,0.0001157,2]
[353766226,1740023432894,-490.14,0.0001158,2]
[353766228,1740023432904,-150.0,0.00011597,2]
[353766230,1740023432914,-150.0,0.00011624,2]
[353766232,1740023432924,-150.0,0.00011628,2]
[353766234,1740023432933,-150.0,0.00011651,2]
[353766236,1740023432943,-150.0,0.0001166,2]
[353766238,1740023432953,-152.0,0.00011671,3]
[353766240,1740023432962,-150.0,0.00011671,2]
[353766242,1740023432972,-180.9643586,0.00011672,2]
[353766246,1740023432994,-311.5556414,0.00011672,2]
[353766248,1740023433004,-150.0,0.00011678,2]
[353766250,1740023433014,-150.0,0.00011706,2]
[353766252,1740023433023,-150.0,0.00011724,2]
[353766254,1740023433033,-150.0,0.00011733,2]
[353766257,1740023433043,-150.0,0.0001176,2]
[353766259,1740023433053,-150.0,0.00011787,2]
[353766260,1740023433064,-501.51,0.0001179,2]
[353766261,1740023433074,-506.06,0.0001179,2]
[353766262,1740023433085,-494.48,0.0001179,2]
[353766263,1740023433095,-504.94,0.0001179,2]
[353766264,1740023433105,-503.45,0.0001179,2]
[353766265,1740023433115,-491.44,0.0001179,2]
[353766266,1740023433125,-500.63,0.00011791,2]
[353766267,1740023433135,-496.46,0.00011791,2]
[353766268,1740023433145,-493.44,0.00011791,2]
[353766269,1740023433155,-490.32,0.00011791,2]
[353766270,1740023433165,-496.92,0.00011791,2]
[353766271,1740023433174,-491.27,0.00011791,2]
[353766272,1740023433184,-494.41,0.00011791,2]
[353766273,1740023433195,-492.74,0.00011791,2]
[353766274,1740023433204,-491.79,0.00011791,2]
[353766275,1740023433215,-491.38,0.00011791,2]
[353766276,1740023433226,-507.63,0.00011791,2]
[353766277,1740023433236,-507.17,0.00011791,2]
[353766278,1740023433246,-496.64,0.00011791,2]
[353766279,1740023433256,-499.76,0.00011791,2]
[353766280,1740023433266,-498.39,0.00011791,2]
[353766281,1740023433276,-1274.0,0.00011791,2]
[353766282,1740023433286,-2026.0,0.00011791,2]
[353766283,1740023433295,-150.453,0.00011791,2]
[353766284,1740023433306,-572.354,0.00011791,2]
[353766285,1740023433315,-1787.0,0.00011791,2]
[353766286,1740023433325,-908.0,0.00011791,2]
[353766287,1740023433335,-783.0,0.00011791,2]
[353766288,1740023433344,-1266.0,0.00011791,2]
[353766289,1740023433353,-1424.0,0.00011791,2]
[353766290,1740023433363,-539.0,0.00011791,2]
[353766291,1740023433372,-150.0,0.00011791,2]
[353766292,1740023433381,-3917.0,0.00011791,2]
[353766293,1740023433391,-493.87,0.00011792,2]
[353766294,1740023433401,-507.86,0.00011792,2]
[353766295,1740023433411,-490.21,0.00011792,2]
[353766296,1740023433423,-501.88,0.00011792,2]
[353766297,1740023433432,-494.69,0.00011792,2]
[353766298,1740023433442,-502.0,0.00011792,2]
[353766299,1740023433452,-492.97,0.00011792,2]
[353766300,1740023433461,-502.18,0.00011792,2]
[353766301,1740023433472,-150.0,0.00011814,2]
[353766302,1740023433482,-150.0,0.0001182,2]
[353766303,1740023433492,-150.0,0.00011841,2]
[353766304,1740023433503,-150.0,0.00011868,2]
[353766305,1740023433513,-150.0,0.00011868,2]
[353766306,1740023433523,-150.0,0.00011896,2]
[353766307,1740023433534,-150.0,0.00011917,2]
[353766308,1740023433545,-150.0,0.00011923,2]
[353766309,1740023433555,-150.0,0.0001195,2]
[353766310,1740023433566,-150.0,0.00011977,2]
[353766311,1740023433576,-150.0,0.00012004,2]
[353766312,1740023433586,-150.0,0.00012013,2]
[353766313,1740023433596,-150.0,0.00012031,2]
[353766314,1740023433606,-152.0,0.00012037,4]
[353766315,1740023433617,-1741.32,0.00012054,2]
[353766316,1740023433628,-150.0,0.00012059,2]
[353766317,1740023433637,-150.0,0.00012077,2]
[353766318,1740023433648,-150.0,0.00012086,2]
[353766319,1740023433658,-432.37606579,0.00012096,2]
[353766320,1740023433669,-1960.0,0.000121,2]
[353766321,1740023433679,-150.0,0.00012109,2]
[353766322,1740023433690,-150.0,0.00012113,2]
[353766323,1740023433703,-150.0,0.0001214,2]
[353766324,1740023433713,-1053.97,0.00012188,2]
[353766325,1740023433724,-150.0,0.00012205,2]
[353766326,1740023433735,-183.81158503,0.0001223,2]
[353766327,1740023433746,-273.5342749,0.0001225,2]
[353766328,1740023433756,-150.0,0.00012272,2]
[353766329,1740023433766,-204.09717848,0.00012279,2]
[353766330,1740023433776,-500.0,0.00012279,2]
[353766331,1740023433786,-500.0,0.00012279,2]
[353766332,1740023433796,-500.0,0.00012279,2]
[353766333,1740023433807,-500.0,0.00012279,2]
[353766334,1740023433817,-500.0,0.00012279,2]
[353766335,1740023433827,-500.0,0.00012279,2]
[353766336,1740023433838,-500.0,0.00012279,2]
[353766337,1740023433847,-309.30613384,0.00012279,2]
[353766338,1740023433858,-150.0,0.00012285,2]
[353766339,1740023433867,-150.0,0.000123,2]
[353766340,1740023433878,-300.0,0.000123,2]
[353766341,1740023433888,-150.0,0.00012301,2]
[353766342,1740023433898,-150.0,0.00012314,2]
[353766343,1740023433908,-252.85042183,0.00012325,2]
[353766344,1740023433918,-1741.32,0.00012328,2]
[353766345,1740023433929,-1000.0,0.00012333,2]
[353766346,1740023433939,-420.0,0.00012339,2]
[353766347,1740023433948,-150.0,0.00012397,2]
[353766348,1740023433958,-914.2906,0.00012399,2]
[353766349,1740023433969,-494.24,0.00012399,2]
[353766350,1740023433980,-121710.72826787,0.000124,3]
[353766351,1740023433990,-498.15,0.000124,2]
[353766352,1740023434001,-200.0,0.000124,2]
[353766353,1740023434011,-285.42199302,0.000124,2]
[353766354,1740023434022,-300.0,0.000124,2]
[353766355,1740023434032,-173.61959283,0.000124,2]
[353766356,1740023434042,-2000.0,0.000124,2]
[353766357,1740023434052,-200.0,0.000124,2]
[353766358,1740023434063,-1337.3132,0.000124,2]
[353766359,1740023434074,-936.43722956,0.000124,2]
[353766360,1740023434085,-1178.0509132,0.000124,2]
[353766361,1740023434096,-152.0,0.00012402,5]
[353766362,1740023434106,-150.0,0.00012404,2]
[353766363,1740023434116,-150.0,0.00012422,2]
[353766364,1740023434126,-872.53070691,0.00012425,2]
[353766365,1740023434137,-150.0,0.00012436,2]
[353766366,1740023434147,-150.0,0.00012483,2]
[353766367,1740023434157,-299.52140142,0.0001249,2]
[353766368,1740023434167,-566.7646259,0.0001249,2]
[353766369,1740023434177,-155.9215185,0.0001249,2]
[353766370,1740023434187,-183.9001927,0.0001249,2]
[353766371,1740023434197,-566.7646259,0.00012491,2]
[353766372,1740023434207,-566.7646259,0.00012491,2]
[353766373,1740023434216,-566.7646259,0.00012491,2]
[353766374,1740023434226,-566.7646259,0.00012491,2]
[353766375,1740023434236,-566.7646259,0.00012491,2]
[353766376,1740023434246,-155.9215185,0.00012491,2]
[353766377,1740023434256,-155.9215185,0.00012491,2]
[353766378,1740023434266,-155.9215185,0.00012491,2]
[353766379,1740023434276,-155.9215185,0.00012491,2]
[353766380,1740023434286,-155.9215185,0.00012491,2]
[353766381,1740023434296,-183.9001927,0.00012491,2]
[353766382,1740023434307,-183.9001927,0.00012491,2]
[353766383,1740023434317,-183.9001927,0.00012491,2]
[353766384,1740023434327,-183.9001927,0.00012491,2]
[353766385,1740023434337,-183.9001927,0.00012491,2]
[353766386,1740023434347,-151.12187154,0.00012493,2]
[353766387,1740023434357,-155.5097465,0.00012493,2]
[353766388,1740023434367,-1421.94876461,0.00012499,2]
[353766389,1740023434378,-197.5916342,0.00012499,2]
[353766390,1740023434388,-500.0,0.00012499,2]
[353766391,1740023434398,-501.42773996,0.00012499,2]
[353766392,1740023434414,-746.08,0.00012499,2]
[353766393,1740023434428,-367.39325732,0.00012499,2]
[353766394,1740023434441,-1957.0,0.000125,2]
[353766395,1740023434454,-196405.35927161,0.000125,3]
[353766396,1740023434465,-2134.30996221,0.000125,2]
[353766397,1740023434475,-576978.33289296,0.000125,5]
[353766398,1740023434496,-32437.41225514,0.000125,5]
[353766399,1740023434507,-32834.69764867,0.000125,5]
[353766407,1740023438336,-610.22697178,0.00011791,2]
[353766408,1740023438347,-273.70724043,0.00011791,2]
[353766409,1740023438359,-226.06578779,0.00011791,2]
[353766410,1740023438368,-1685.50421221,0.000125,5]
[353766411,1740023438379,-886.16936274,0.000125,5]
[353766412,1740023438510,-651.58908075,0.000125,5]
[353766413,1740023438523,-453.58556537,0.000125,5]
[353766414,1740023438535,-582.27999921,0.000125,5]
[353766415,1740023438565,-9964.97917499,0.000125,5]
[353766416,1740023438577,-76018.22961879,0.000125,5]
[353766417,1740023438589,-1277.07999995,0.000125,5]
[353766418,1740023438625,-1704.75408117,0.000125,5]
[353766419,1740023438681,-2052.40387248,0.000125,5]
[353766422,1740023440509,-384.75850322,0.000124,2]
[353766423,1740023440520,-1344.01412263,0.000125,2]
[353766424,1740023440532,-493.98587737,0.000125,2]
[353766425,1740023440541,-1431.37412263,0.000125,5]
[353766426,1740023440617,-1032.6890508,0.000125,5]
[353766427,1740023440728,-1053.91278966,0.000125,5]
[353766428,1740023440740,-535.02444576,0.000125,5]
[353766429,1740023440891,-7326.50999995,0.000125,5]
[353766430,1740023440903,-2856.93372,0.000125,5]
[353766431,1740023440946,-2256.50655973,0.000125,5]
[353766432,1740023441126,-574.72339879,0.000125,5]
[353766433,1740023441142,-912.50764164,0.000125,5]
[353766434,1740023441154,-1399.79399091,0.000125,5]
[353766435,1740023441166,-7063.34936011,0.000125,5]
[353766436,1740023441177,-4702.1225,0.000125,5]
[353766437,1740023441189,-30527.07713815,0.000125,5]
[353766442,1740023443426,-452.74010106,0.000125,5]
[353766443,1740023443588,-284.74638608,0.000125,5]
[353766448,1740023446323,-787.05458683,0.000125,5]
[353766449,1740023446380,-760557.42001225,0.000125,5]
[353766450,1740023446436,-1647.0,0.000125,2]
[353766451,1740023446446,-84171.43113657,0.000125,5]
[353766452,1740023446545,-7707.5872256,0.000125,5]
[353766453,1740023446558,-14900.730143,0.000125,5]
[353766455,1740024502436,164.84,8.767e-05,2]
[353766465,1740024631500,-852.08,9.696e-05,2]
[353766466,1740024631510,-260.14,0.000107,3]
[353766467,1740024631552,-4354.86,0.000107,3]
[353766468,1740024631562,-1166.91,0.00010831,2]
[353766469,1740024631572,-170.21,0.00010831,2]
[353766470,1740024631582,-500.0,0.00010959,2]
[353766471,1740024631591,-550.0,0.00011,2]
[353766472,1740024631601,-5552.0,0.000111,5]
[353766473,1740024631611,-1500.0,0.0001113,2]
[353766474,1740024631620,-453.5,0.00011228,2]
[353766475,1740024631630,-150.0,0.00011244,2]
[353766476,1740024631639,-152.72420686,0.00011244,2]
[353766477,1740024631649,-150.0,0.00011244,2]
[353766478,1740024631658,-151.87993698,0.00011244,2]
[353766479,1740024631667,-300.0,0.00011273,2]
[353766480,1740024631676,-2000.0,0.00011273,2]
[353766481,1740024631686,-150.0,0.00011317,2]
[353766482,1740024631695,-150.0,0.0001134,2]
[353766483,1740024631705,-150.0,0.00011383,2]
[353766484,1740024631714,-150.0,0.00011436,2]
[353766485,1740024631724,-150.0,0.00011521,2]
[353766486,1740024631733,-150.0,0.00011532,2]
[353766487,1740024631742,-2000.0,0.00011535,2]
[353766488,1740024631752,-234.63,0.00011541,2]
[353766489,1740024631761,-150.0,0.00011613,2]
[353766490,1740024631771,-23900.0,0.00011614,2]
[353766491,1740024631780,-1000.0,0.00011614,2]
[353766492,1740024631790,-150.0,0.00011614,2]
[353766493,1740024631800,-150.0,0.00011628,2]
[353766494,1740024631809,-150.0,0.0001166,2]
[353766495,1740024631818,-150.0,0.00011724,2]
[353766496,1740024631827,-158.49,0.00011741,2]
[353766497,1740024631837,-300.0,0.00011781,2]
[353766498,1740024631847,-150.0,0.00011799,2]
[353766499,1740024631856,-150.67,0.00011801,2]
[353766500,1740024631865,-253.256,0.00011801,2]
[353766501,1740024631874,-1424.0,0.00011801,2]
[353766502,1740024631884,-150.0,0.0001182,2]
[353766503,1740024631894,-986.71,0.00011878,2]
[353766504,1740024631904,-150.0,0.00011914,2]
[353766505,1740024631917,-500.0,0.00011914,2]
[353766506,1740024631927,-150.0,0.00011917,2]
[353766508,1740024631936,-150.0,0.00011917,2]
[353766510,1740024631945,-500.0,0.00011917,2]
[353766512,1740024631955,-150.0,0.00011938,2]
[353766515,1740024631964,-852.08,0.0001196,2]
[353766517,1740024631975,-150.0,0.00012013,2]
[353766519,1740024631984,-1596.21,0.00012054,2]
[353766520,1740024631993,-150.0,0.00012077,2]
[353766522,1740024632003,-150.0,0.00012109,2]
[353766523,1740024632012,-178.44,0.00012138,2]
[353766524,1740024632022,-432.37606579,0.00012184,2]
[353766525,1740024632032,-150.0,0.00012205,2]
[353766526,1740024632042,-150.0,0.00012216,2]
[353766527,1740024632052,-182.3561833,0.0001225,2]
[353766528,1740024632063,-1911.0,0.000123,2]
[353766529,1740024632075,-150.0,0.00012301,2]
[353766530,1740024632085,-134.7699316,0.00012328,2]
[353766531,1740024632098,-1461.4400684,0.00012328,2]
[353766532,1740024632108,-150.0,0.00012354,2]
[353766533,1740024632117,-150.0,0.00012397,2]
[353766534,1740024632127,-1350.6191,0.000124,2]
[353766535,1740024632137,-9013.277,0.000124,2]
[353766536,1740024632147,-270.34079868,0.000124,2]
[353766537,1740024632157,-624.29148638,0.000124,2]
[353766538,1740024632167,-206.09757062,0.00012493,2]
[353766539,1740024632177,-266.74191828,0.00012493,2]
[353766540,1740024632187,-2258.11,0.00012497,14]
[353766541,1740024632197,-501.87981148,0.00012499,2]
[353766542,1740024632207,-735.83,0.00012499,2]
[353766543,1740024632217,-500.0,0.00012499,2]
[353766544,1740024632226,-1603.0,0.000125,2]
[353766545,1740024632236,-81700.28485272,0.000125,2]
[353766546,1740024632245,-179.67217712,0.000125,2]
[353766547,1740024632255,-696043.38270302,0.000125,3]
[353766548,1740024632264,-318915.95832862,0.000125,5]
[353766549,1740024632276,-1771.80055567,0.000125,5]
[353766550,1740024632289,-23934.41887302,0.000125,5]
[353766551,1740024632300,-63802.95073462,0.000125,5]
[353766552,1740024632311,-219345.56345431,0.000125,5]
[353766553,1740024632322,-18415.75351124,0.000125,5]
[353766554,1740024632334,-1484.54471875,0.000125,5]
[353766558,1740024639744,-975.00988987,0.000125,2]
[353766559,1740024639796,-458.99011013,0.000125,2]
[353766560,1740024639806,-436.28832479,0.000125,5]
[353766561,1740024639901,-2258.02478441,0.000125,5]
[353766800,1740024642692,-947.05779084,0.000125,2]
[353766809,1740024642772,-344.94220916,0.000125,2]
[353766811,1740024642782,-742.77656244,0.000125,5]
[353767078,1740024645445,-9110.89339518,0.000125,5]
[353767090,1740024645551,-16478.04150633,0.000125,5]
[353767113,1740024645761,-1210.20171699,0.000125,5]
[353767115,1740024645773,-499.78158007,0.000125,5]
[353767117,1740024645784,-547.83283267,0.000125,5]
[353767893,1740025076996,-150.0,9.796e-05,2]
[353767894,1740025078622,-150.0,9.796e-05,2]
[353767895,1740025080743,-150.0,9.796e-05,2]
[353767896,1740025084826,-150.0,9.796e-05,2]
[353767897,1740025086247,-150.0,9.796e-05,2]
[353767898,1740025092134,-79.49,9.796e-05,2]
[353767899,1740025509792,-150.0,0.0001,2]
[353767900,1740025513873,-150.0,9.95e-05,2]
[353767901,1740025517022,-150.0,9.95e-05,2]
[353767902,1740025521165,-150.0,9.95e-05,2]
[353767903,1740025522773,-150.0,9.95e-05,2]
[353767904,1740025524418,-150.0,9.95e-05,2]
[353767905,1740025602873,344.0,0.000205,120]
[353767922,1740025831646,-3002.04649014,9.948e-05,2]
[353767925,1740025831659,-222.65827986,9.948e-05,2]
[353767927,1740025831670,-72.97976923,9.998e-05,2]
[353767928,1740025831702,-227.02023077,9.998e-05,2]
[353767929,1740025831713,-338.53251313,9.999e-05,2]
[353767930,1740025831725,-2737.33492461,9.999e-05,2]
[353767931,1740025831741,-1587.35583697,9.999e-05,2]
[353767932,1740025831759,-264.744412,9.999e-05,2]
[353767933,1740025831817,-1257.00900009,9.999e-05,2]
[353767934,1740025831830,-1000.56925621,9.999e-05,2]
[353767935,1740025831841,-155.63015719,9.999e-05,2]
[353767936,1740025831852,-150.0,9.999e-05,2]
[353767937,1740025831862,-627.62616015,0.0001,2]
[353767938,1740025831928,-1998.10131452,0.0001,2]
[353768079,1740025837615,-301.89420034,0.0001,2]
[353768080,1740025837724,-376.0213201,0.0001,2]
[353768081,1740025837738,-3391.46814228,0.0001,2]
[353768082,1740025837781,-476.81295156,0.0001,2]
[353768083,1740025837794,-2039238.43564956,0.0001,2]
[353768084,1740025837807,-5398.43971391,0.0001,2]
[353768085,1740025837892,-437.70943335,0.0001,2]
[353768088,1740025839886,-844.23234982,0.0001,2]
[353768089,1740025840160,-369.51645835,0.0001,2]
[353768090,1740025840173,-262.1667,0.0001,2]
[353768350,1740025842721,-644.73,0.0001,2]
[353768352,1740025842733,-19666.89131743,0.0001,2]
[353768355,1740025842746,-360.004999,0.0001,2]
[353768357,1740025842758,-17005.88014737,0.0001,2]
[353768359,1740025842769,-51638.76908216,0.0001,2]
[353768361,1740025842781,-6969.56603016,0.0001,2]
[353768370,1740025842857,-594.630855,0.0001,2]
[353768373,1740025842869,-958.930518,0.0001,2]
[353768647,1740025845671,-931.84999995,0.0001,2]
[353768659,1740025845782,-36633.57798922,0.0001,2]
[353768661,1740025845794,-2000.0,0.0001,2]
[353768667,1740025845839,-7414.08194455,0.0001,2]
[353768674,1740025845900,-287.54806406,0.0001,2]
[353768677,1740025845913,-261.99509379,0.0001,2]
[353768679,1740025845925,-966.4088,0.0001,2]
[353768683,1740025845958,-691.32685201,0.0001,2]
[353768757,1740026132023,829.47,9.202e-05,2]
[353768759,1740026485520,387.77,8.767e-05,2]
[353768760,1740026899369,170.9,8.335e-05,2]
[353768776,1740027031793,-150.0,9.999e-05,2]
[353768777,1740027031803,-5750.0,0.0001,2]
[353768778,1740027031903,-930.99788812,0.0001,2]
[353768779,1740027031956,-791.00211188,0.0001,2]
[353768780,1740027031968,-795.57,0.0001,2]
[353768781,1740027032014,-541.345,0.0001,2]
[353768782,1740027032025,-8454.92847332,0.0001,2]
[353769325,1740027037847,-3882.97017492,0.0001,2]
[353769327,1740027037858,-2864.30794194,0.0001,2]
[353769330,1740027037876,-1814.03961151,0.0001,2]
[353769337,1740027037932,-6409.82392561,0.0001,2]
[353769344,1740027037992,-630.69068571,0.0001,2]
[353769346,1740027038004,-4087.13897112,0.0001,2]
[353769349,1740027038015,-1860.04352126,0.0001,2]
[353769351,1740027038028,-511.17103011,0.0001,2]
[353769353,1740027038040,-534.78843896,0.0001,2]
[353769585,1740027040230,-9096.64373114,0.0001,2]
[353769587,1740027040242,-8947.21879473,0.0001,2]
[353769589,1740027040253,-8943.78386462,0.0001,2]
[353769592,1740027040264,-9077.54866152,0.0001,2]
[353769594,1740027040275,-8943.84023489,0.0001,2]
[353769596,1740027040290,-2514.68958605,0.0001,2]
[353769598,1740027040300,-818.32034155,0.0001,2]
[353769601,1740027040311,-1446.6199346,0.0001,2]
[353769814,1740027042952,-46989.45521952,0.0001,2]
[353769816,1740027042963,-1114.42767,0.0001,2]
[353769818,1740027042972,-164.73669841,0.0001,2]
[353769820,1740027042985,-39.37068493,0.0001,2]
[353769822,1740027042995,-170.62857643,0.0001,2]
[353769824,1740027043004,-486.22,0.0001024,2]
[353769826,1740027043013,-150.0,0.00010247,2]
[353769828,1740027043023,-500.0,0.00010261,2]
[353769829,1740027043033,-454.03,0.00010285,2]
[353769831,1740027043042,-74.56831755,0.00010308,2]
[353769834,1740027043054,-95.65168245,0.00010308,2]
[353769836,1740027043063,-289.82594836,0.00010336,2]
[353769838,1740027043072,-134.20893541,0.00010379,2]
[353769840,1740027043084,-269.502,0.00010379,2]
[353769842,1740027043096,-347.47906459,0.00010379,2]